bitfinex/quotes_SOLUSD_20240711
["timestamp","ask_amount","ask_price","bid_price","bid_amount"]
[1720708787097,13.5,141.2,141.18,7.083]
[1720708787299,13.5,141.19,141.16,17.7095]
[1720708787613,7.082,141.21,141.16,19.12512406]
[1720708787614,13.5,141.18,141.16,19.12512406]
[1720708787814,7.082,141.21,141.16,19.12512406]
[1720708788017,13.5,141.17,141.16,19.12512406]
[1720708789117,13.5,141.17,141.16,1.41562406]
[1720708789605,13.5,141.17,141.14,7.085]
[1720708789807,13.5,141.16,141.14,7.085]
[1720708790799,13.5,141.16,141.13,24.799]
[1720708790982,13.5,141.15,141.13,24.799]
[1720708791187,13.5,141.15,141.14,7.0851]
[1720708791385,13.5,141.15,141.13,17.7134]
[1720708792186,60.0614,141.19,141.13,17.7134]
[1720708792481,60.0614,141.19,141.14,7.0851]
[1720708792901,67.144,141.19,141.14,7.0851]
[1720708793108,67.144,141.19,141.13,24.7989]
[1720708793309,67.144,141.19,141.13,24.7988]
[1720708794001,60.0614,141.19,141.14,7.0851]
[1720708794517,67.144,141.19,141.14,7.0851]
[1720708794984,15.766,141.23,141.15,17.7113]
[1720708795186,7.0817,141.21,141.16,7.0838]
[1720708795390,7.0817,141.21,141.12,13.5]
[1720708795391,13.5,141.17,141.14,7.085]
[1720708795595,13.5,141.16,141.14,7.085]
[1720708795798,13.5,141.17,141.15,7.0846]
[1720708796386,27.9686359,141.23,141.15,7.0846]
[1720708796624,13.5,141.17,141.15,7.0846]
[1720708796995,13.5,141.17,141.16,7.0841]
[1720708797193,13.5,141.18,141.16,7.0841]
[1720708797596,13.5,141.18,141.16,30.0]
[1720708797796,13.5,141.17,141.16,30.0]
[1720708800422,13.5,141.18,141.16,30.0]
[1720708800584,13.5,141.18,141.15,30.0]
[1720708800789,13.5,141.18,141.16,7.0841]
[1720708801600,7.0819,141.21,141.17,1.38026226]
[1720708801790,13.5,141.18,141.17,1.38026226]
[1720708802509,13.5,141.18,141.16,1.38026226]
[1720708802816,13.5,141.17,141.12,1.38045785]
[1720708803115,13.5,141.14,141.11,24.802]
[1720708803993,13.5,141.15,141.13,7.0856]
[1720708804218,61.0826,141.19,141.14,1.41691095]
[1720708804418,7.0825,141.2,141.14,1.41691095]
[1720708804715,13.5,141.17,141.14,8.50181095]
[1720708805095,13.5,141.16,141.14,1.41691095]
[1720708805601,13.5,141.15,141.14,1.41691095]
[1720708805810,13.5,141.15,141.13,1.41685078]
[1720708805995,7.0837,141.17,141.13,1.41685078]
[1720708806196,13.5,141.14,141.13,1.41685078]
[1720708806617,13.5,141.14,141.12,1.41698892]
[1720708806813,13.5,141.13,141.12,1.41698892]
[1720708807699,13.5,141.14,141.12,1.41698892]
[1720708808027,13.5,141.14,141.12,8.50308892]
[1720708808328,13.5,141.14,141.13,1.41688856]
[1720708808514,13.5,141.14,141.11,8.50328856]
[1720708809020,13.5,141.13,141.11,1.41688856]
[1720708809323,13.5,141.12,141.1,17.7168]
[1720708809498,15.732,141.17,141.11,7.0866]
[1720708809499,13.5,141.13,141.11,7.0866]
[1720708809925,7.0846,141.15,141.1,17.7168]
[1720708810229,13.5,141.12,141.1,17.7168]
[1720708810729,13.5,141.12,141.1,24.8037]
[1720708811511,13.5,141.12,141.11,7.0866]
[1720708811723,13.5,141.13,141.11,7.0866]
[1720708811917,13.5,141.13,141.11,8.485395]
[1720708812434,15.732,141.17,141.12,7.086]
[1720708812739,13.5,141.14,141.12,7.086]
[1720708813208,6.4394,141.18,141.13,1.39859677]
[1720708813414,13.5,141.14,141.1,1.3995569]
[1720708813627,13.5,141.11,141.1,1.3995569]
[1720708813831,13.5,141.12,141.1,1.3995569]
[1720708814508,7.0857,141.13,141.09,19.11865693]
[1720708814706,13.5,141.11,141.09,26.20625693]
[1720708816319,13.5,141.11,141.09,24.8067]
[1720708816505,13.5,141.1,141.09,17.7191]
[1720708816709,13.5,141.11,141.09,24.8067]
[1720708816906,13.5,141.12,141.11,7.0866]
[1720708817643,7.0842,141.16,141.11,7.0866]
[1720708817814,13.5,141.12,141.11,7.0866]
[1720708818016,13.5,141.12,141.1,7.0869]
[1720708819317,16.4245,141.17,141.11,17.7166]
[1720708819318,23.5081,141.17,141.11,17.7166]
[1720708819518,13.5,141.13,141.11,17.7166]
[1720708820237,13.5,141.15,141.13,17.7137]
[1720708820644,13.5,141.15,141.13,24.7993]
[1720708820820,13.5,141.15,141.13,17.7137]
[1720708821014,13.5,141.14,141.11,1.04949185]
[1720708821213,13.5,141.12,141.1,17.7168]
[1720708821425,7.0842,141.16,141.11,1.41242651]
[1720708821630,13.5,141.12,141.11,1.41242651]
[1720708821828,23.5082,141.17,141.11,1.41242651]
[1720708822036,13.5,141.13,141.11,1.41242651]
[1720708822508,13.5,141.12,141.11,7.0865]
[1720708823138,7.0842,141.16,141.11,7.0865]
[1720708823336,13.5,141.13,141.12,8.37252826]
[1720708823527,13.5,141.14,141.12,8.37252826]
[1720708823711,23.5081,141.17,141.12,8.37252826]
[1720708823917,16.4245,141.17,141.12,8.37252826]
[1720708824220,57.1440551,141.19,141.13,17.7141]
[1720708824221,64.2269551,141.19,141.13,17.7141]
[1720708824531,13.5,141.15,141.14,1.28624599]
[1720708825223,13.5,141.15,141.12,7.0861]
[1720708825543,13.5,141.14,141.11,8.37244599]
[1720708826819,13.5,141.14,141.11,7.0862]
[1720708827338,13.5,141.14,141.1,24.8036]
[1720708827644,13.5,141.13,141.1,24.8036]
[1720708829143,13.5,141.12,141.1,24.8038]
[1720708829333,13.5,141.12,141.11,7.0866]
[1720708829540,74.8507551,141.19,141.12,7.0861]
[1720708829541,13.5,141.14,141.12,7.0861]
[1720708829743,3.1440551,141.19,141.14,7.0849]
[1720708829918,13.5,141.16,141.15,1.41601009]
[1720708830117,13.5,141.16,141.14,17.7128]
[1720708830337,13.5,141.15,141.12,7.0859]
[1720708830567,7.0832,141.18,141.12,7.0859]
[1720708830766,13.5,141.16,141.14,7.0847]
[1720708830972,13.5,141.16,141.13,17.7138]
[1720708831266,13.5,141.17,141.14,0.38032652]
[1720708831557,7.0816,141.22,141.16,7.0841]
[1720708831767,13.5,141.19,141.17,1.12367817]
[1720708832137,13.5,141.18,141.17,1.12367817]
[1720708832340,16.22898422,141.23,141.17,18.83237817]
[1720708832643,13.5,141.2,141.18,8.20659857]
[1720708833054,29.9915,141.24,141.18,8.20659857]
[1720708833237,0.8333175,141.25,141.2,7.0821]
[1720708833438,13.5,141.23,141.21,1.12335987]
[1720708833645,13.5,141.22,141.21,1.12335987]
[1720708834237,13.5,141.23,141.21,8.20495987]
[1720708834467,13.5,141.22,141.21,7.0816]
[1720708834643,0.8333175,141.25,141.21,8.20919204]
[1720708834854,13.5,141.24,141.23,7.0805]
[1720708835165,0.8333175,141.25,141.23,7.0805]
[1720708835355,13.5,141.24,141.22,7.081]
[1720708835955,0.8333175,141.25,141.22,7.081]
[1720708836161,13.5,141.24,141.22,7.081]
[1720708837046,13.5,141.24,141.22,8.49566733]
[1720708837866,13.5,141.23,141.21,24.7847]
[1720708838768,13.5,141.24,141.21,24.7847]
[1720708839137,13.5,141.23,141.21,24.7847]
[1720708839868,13.5,141.23,141.22,0.47163192]
[1720708840164,0.8333175,141.25,141.22,7.0811]
[1720708840367,13.5,141.23,141.18,24.2481]
[1720708840555,13.5,141.21,141.19,7.0825]
[1720708841568,13.5,141.21,141.18,24.7898]
[1720708842370,13.5,141.21,141.19,7.0825]
[1720708842861,13.5,141.21,141.2,7.0821]
[1720708843079,0.8333175,141.25,141.21,7.0815]
[1720708843447,13.5,141.22,141.21,7.0815]
[1720708843966,13.5,141.22,141.2,24.7868]
[1720708844656,13.5,141.22,141.21,7.0816]
[1720708844845,0.8333175,141.25,141.22,7.081]
[1720708845043,13.5,141.23,141.22,7.081]
[1720708846245,0.8333175,141.25,141.22,7.081]
[1720708846450,14.3333175,141.25,141.23,8.49614863]
[1720708846655,14.3333175,141.25,141.24,1.41574839]
[1720708846945,14.3333175,141.25,141.23,8.49648153]
[1720708847138,13.5,141.24,141.23,8.49648153]
[1720708847968,13.5,141.24,141.23,1.41588153]
[1720708848269,0.8333175,141.25,141.23,8.49628153]
[1720708848456,13.5,141.24,141.23,7.0804]
[1720708848842,14.3333175,141.25,141.23,7.0804]
[1720708849200,14.3333175,141.25,141.22,24.7835]
[1720708849669,13.5,141.24,141.22,24.7835]
[1720708850545,13.5,141.24,141.23,7.0806]
[1720708851058,13.5,141.24,141.22,24.7835]
[1720708851365,13.5,141.24,141.23,7.0806]
[1720708851572,14.3333175,141.25,141.23,7.0806]
[1720708851751,14.3333175,141.25,141.22,24.7835]
[1720708851950,0.8333175,141.25,141.23,7.0803]
[1720708852756,14.3333175,141.25,141.23,7.0803]
[1720708853969,14.3333175,141.25,141.24,7.0801]
[1720708854177,0.8333175,141.25,141.24,7.0801]
[1720708860277,0.8333175,141.25,141.22,17.7026]
[1720708860869,0.8333175,141.25,141.23,7.0803]
[1720708861271,0.8333175,141.25,141.24,7.0801]
[1720708861591,14.3333175,141.25,141.23,7.0804]
[1720708861895,0.8333175,141.25,141.23,7.0804]
[1720708862973,0.8333175,141.25,141.22,17.7026]
[1720708862974,0.8333175,141.25,141.22,24.7835]
[1720708863285,14.3333175,141.25,141.23,0.61087483]
[1720708865267,14.3333175,141.25,141.23,7.69137483]
[1720708865464,0.8333175,141.25,141.24,7.0801]
[1720708866502,0.8333175,141.25,141.23,7.69127483]
[1720708867195,0.8333175,141.25,141.24,7.0801]
[1720708868772,0.8333175,141.25,141.23,7.0804]
[1720708869270,0.8333175,141.25,141.24,7.0801]
[1720708870671,0.8333175,141.25,141.24,38.2804]
[1720708870870,0.8333175,141.25,141.24,83.4504]
[1720708871084,0.8333175,141.25,141.24,113.6204]
[1720708872371,0.8333175,141.25,141.24,120.1234]
[1720708872574,0.8333175,141.25,141.24,142.83772011]
[1720708872775,0.04209872,141.31,141.3,24.7699]
[1720708877295,0.04209872,141.31,141.3,38.2699]
[1720708877604,0.04209872,141.31,141.3,24.7699]
[1720708878589,0.04209872,141.31,141.3,17.6928]
[1720708878991,0.04209872,141.31,141.3,24.7699]
[1720708879227,0.04209872,141.31,141.3,38.2699]
[1720708879705,0.04209872,141.31,141.3,24.7699]
[1720708879885,0.04209872,141.31,141.3,25.9976225]
[1720708880798,0.04209872,141.31,141.3,39.4976225]
[1720708881101,0.04209872,141.31,141.3,83.6099]
[1720708881304,0.04209872,141.31,141.3,84.8374488]
[1720708881609,0.04209872,141.31,141.3,84.6674488]
[1720708881779,0.04209872,141.31,141.3,24.9399]
[1720708881975,0.04209872,141.31,141.3,85.02466919]
[1720708882707,0.04209872,141.31,141.3,24.7699]
[1720708883288,0.04209872,141.31,141.3,17.6928]
[1720708883486,0.04209872,141.31,141.29,7.0774]
[1720708884202,0.04209872,141.31,141.28,7.078]
[1720708884389,0.04209872,141.31,141.29,1.41521899]
[1720708885482,0.04209872,141.31,141.27,24.774]
[1720708885706,13.5,141.3,141.27,24.774]
[1720708885887,13.5,141.29,141.27,24.774]
[1720708886086,0.04209872,141.31,141.27,24.774]
[1720708886307,13.54209872,141.31,141.27,24.774]
[1720708886504,0.04209872,141.31,141.28,7.078]
[1720708886808,0.04209872,141.31,141.29,7.0775]
[1720708887100,0.04209872,141.31,141.3,7.0771]
[1720708887890,0.04209872,141.31,141.3,8.49218909]
[1720708888204,0.04209872,141.31,141.29,17.6938]
[1720708888605,13.5,141.3,141.27,7.0784]
[1720708889321,13.5,141.3,141.28,17.6949]
[1720708889817,13.54209872,141.31,141.28,17.6949]
[1720708890310,13.5,141.3,141.28,17.6949]
[1720708890907,13.5,141.3,141.28,24.773]
[1720708892306,0.04209872,141.31,141.28,17.6949]
[1720708893388,0.04209872,141.31,141.3,7.0771]
[1720708893591,0.04209872,141.31,141.28,17.6949]
[1720708893918,0.04209872,141.31,141.29,7.0772]
[1720708894494,0.04209872,141.31,141.28,24.7728]
[1720708894697,13.5,141.3,141.28,17.6949]
[1720708894915,13.5,141.29,141.25,17.698]
[1720708895116,13.5,141.27,141.23,7.0802]
[1720708895412,13.5,141.26,141.24,7.08]
[1720708896387,13.5,141.25,141.22,17.7017]
[1720708896583,13.5,141.23,141.22,17.7017]
[1720708896784,13.5,141.23,141.22,24.7828]
[1720708896988,13.5,141.24,141.22,24.7828]
[1720708897408,13.5,141.23,141.19,17.7063]
[1720708897621,13.5,141.23,141.21,7.0813]
[1720708898195,13.5,141.22,141.21,7.0813]
[1720708898613,13.5,141.23,141.21,7.0813]
[1720708898991,13.5,141.24,141.21,7.0813]
[1720708899318,13.5,141.23,141.21,7.0813]
[1720708899720,13.5,141.22,141.21,7.0813]
[1720708899925,13.5,141.22,141.2,7.082]
[1720708900701,13.5,141.23,141.21,7.0816]
[1720708901915,20.5791,141.26,141.2,7.0819]
[1720708902097,13.5,141.22,141.2,7.0819]
[1720708902295,13.5,141.23,141.2,7.0819]
[1720708902996,13.5,141.23,141.19,24.7887]
[1720708903196,13.5,141.2,141.19,17.7063]
[1720708904019,13.5,141.2,141.16,17.7096]
[1720708904191,13.5,141.19,141.18,7.0831]
[1720708904391,13.475,141.24,141.19,7.0825]
[1720708904618,13.5,141.2,141.19,7.0825]
[1720708904799,13.5,141.2,141.18,24.7904]
[1720708906019,13.5,141.2,141.19,7.0826]
[1720708907397,16.3561,141.25,141.2,17.7043]
[1720708907697,13.5,141.24,141.22,7.0811]
[1720708908194,13.5,141.24,141.2,17.7043]
[1720708908195,13.5,141.24,141.21,7.0815]
[1720708908404,13.5,141.23,141.21,7.0815]
[1720708908919,13.5,141.23,141.2,24.7863]
[1720708909324,13.5,141.22,141.2,24.7863]
[1720708909521,13.5,141.22,141.21,8.49588219]
[1720708909820,16.3561,141.25,141.21,8.49588219]
[1720708909821,13.5,141.23,141.21,8.49588219]
[1720708911212,54.0,141.26,141.21,8.49588219]
[1720708911414,61.0792,141.26,141.21,8.49588219]
[1720708911619,54.0,141.26,141.21,1.41428219]
[1720708912002,61.0793,141.26,141.21,1.41428219]
[1720708914823,61.0793,141.26,141.21,8.49588219]
[1720708915204,13.5,141.23,141.21,1.41428219]
[1720708917226,13.5,141.22,141.2,24.7863]
[1720708918021,7.0787,141.27,141.22,7.081]
[1720708918409,13.5,141.23,141.22,7.081]
[1720708918604,13.5,141.23,141.21,7.0815]
[1720708919620,13.5,141.24,141.21,7.0815]
[1720708920519,6.434,141.28,141.22,17.7025]
[1720708920721,13.5,141.26,141.22,17.7025]
[1720708921409,13.5,141.26,141.23,7.0804]
[1720708921815,13.5,141.25,141.22,17.7025]
[1720708922731,13.5,141.24,141.22,17.7025]
[1720708923107,13.5,141.24,141.22,24.7835]
[1720708923732,13.5,141.23,141.19,17.7055]
[1720708923947,7.0798,141.25,141.2,7.0821]
[1720708924111,7.0798,141.25,141.19,24.7878]
[1720708924112,13.5,141.21,141.19,24.7878]
[1720708924313,13.5,141.21,141.18,7.0829]
[1720708924629,13.5,141.2,141.19,7.0825]
[1720708925014,13.5,141.21,141.19,7.0825]
[1720708926130,13.5,141.21,141.18,24.7906]
[1720708926931,13.5,141.21,141.19,7.0825]
[1720708929723,16.0733,141.24,141.16,16.4849]
[1720708929929,16.0733,141.24,141.15,53.1322]
[1720708929930,13.5,141.19,141.15,53.1322]
[1720708930424,0.17,141.23,141.17,7.0836]
[1720708930425,7.2508,141.23,141.17,7.0836]
[1720708930640,13.5,141.19,141.17,7.0836]
[1720708932540,13.5,141.18,141.15,17.7106]
[1720708932853,13.5,141.17,141.16,7.0841]
[1720708933047,13.5,141.17,141.15,24.7952]
[1720708933222,13.5,141.16,141.15,24.7952]
[1720708933545,13.5,141.16,141.11,48.9328]
[1720708933546,13.5,141.16,141.13,7.0852]
[1720708933744,13.5,141.15,141.13,7.0852]
[1720708934522,13.5,141.15,141.12,7.086]
[1720708934736,13.5,141.13,141.12,7.086]
[1720708934937,13.5,141.14,141.12,7.086]
[1720708935544,13.5,141.14,141.11,24.8019]
[1720708935728,13.5,141.14,141.12,7.0861]
[1720708935932,13.5,141.14,141.11,24.8018]
[1720708936150,13.5,141.14,141.12,7.0859]
[1720708937231,15.6304,141.19,141.13,7.0856]
[1720708937438,13.5,141.15,141.12,7.0859]
[1720708937647,13.5,141.16,141.13,7.0856]
[1720708938144,22.7132,141.19,141.14,7.0851]
[1720708938336,22.7132,141.19,141.13,17.7139]
[1720708938337,13.5,141.17,141.13,24.7993]
[1720708938646,22.7132,141.19,141.13,24.7993]
[1720708938647,13.5,141.16,141.13,24.7993]
[1720708938844,13.5,141.16,141.13,17.7139]
[1720708939450,13.5,141.16,141.13,19.13076798]
[1720708939753,32.18867986,141.19,141.07,6.31]
[1720708940056,13.5,141.12,141.08,7.0879]
[1720708941130,13.5,141.12,141.09,7.0876]
[1720708941650,13.5,141.11,141.08,7.0879]
[1720708942133,7.0842,141.16,141.1,7.0869]
[1720708942335,13.5,141.14,141.11,1.23658283]
[1720708942543,13.5,141.12,141.1,1.4170882]
[1720708942733,13.5,141.12,141.09,17.7179]
[1720708943744,13.5,141.11,141.06,24.8109]
[1720708944050,7.0865,141.12,141.03,17.7262]
[1720708944051,13.5,141.07,141.03,17.7262]
[1720708944251,13.5,141.06,141.03,17.7262]
[1720708944447,13.5,141.06,141.0,6.3367]
[1720708944448,13.5,141.04,141.0,17.7297]
[1720708944628,15.5983,141.06,141.0,24.8218]
[1720708944829,15.5983,141.06,141.0,17.7297]
[1720708945030,6.4427,141.09,141.01,1.41796512]
[1720708945330,13.5304,141.09,141.02,7.0911]
[1720708945532,13.5304,141.09,141.03,1.41795449]
[1720708945851,13.5304,141.09,141.03,8.50855449]
[1720708946059,13.5304,141.09,141.03,7.0906]
[1720708946253,13.5304,141.09,141.01,8.50915258]
[1720708946443,7.0883,141.08,141.02,1.41785203]
[1720708947270,33.5427,141.09,141.0,17.7297]
[1720708947563,7.0897,141.05,140.97,17.7339]
[1720708948639,7.0897,141.05,140.98,8.16209681]
[1720708948844,7.0897,141.05,140.99,1.06932096]
[1720708949233,7.0904,141.04,140.97,24.8275]
[1720708949451,45.17,141.08,140.98,7.093]
[1720708949452,7.0897,141.05,140.98,7.093]
[1720708949659,7.0897,141.05,140.97,17.7339]
[1720708950241,7.0897,141.05,140.99,7.0926]
[1720708950444,27.1,141.06,141.0,8.16138456]
[1720708950759,34.1892,141.06,141.0,8.16138456]
[1720708951142,27.1,141.06,141.01,7.0916]
[1720708951544,33.5427,141.09,141.02,1.06933288]
[1720708951741,27.1,141.09,141.02,1.06933288]
[1720708952143,34.1881,141.09,141.02,8.16033288]
[1720708952447,27.1,141.09,141.03,7.0904]
[1720708952641,18.15711267,141.11,141.04,1.06918124]
[1720708952841,18.15711267,141.11,141.05,1.06910544]
[1720708953067,22.1638,141.11,141.05,8.15860544]
[1720708953355,7.0861,141.12,141.06,7.089]
[1720708953558,7.0858,141.13,141.07,8.15755386]
[1720708953760,7.0858,141.13,141.08,1.06887809]
[1720708953940,7.0861,141.12,141.08,1.06887809]
[1720708954350,42.9329,141.14,141.08,1.06887809]
[1720708954558,34.1852,141.14,141.08,8.15687809]
[1720708955065,27.1,141.14,141.09,7.0876]
[1720708955369,27.1,141.14,141.1,1.07492509]
[1720708955545,27.1,141.14,141.11,1.07487616]
[1720708955746,7.0843,141.16,141.1,8.16197616]
[1720708956058,7.0843,141.16,141.11,1.0748]
[1720708956371,33.4139,141.17,141.11,8.1613]
[1720708956372,34.1836,141.17,141.11,8.1613]
[1720708956745,34.1836,141.17,141.12,7.0861]
[1720708956942,34.1836,141.17,141.13,1.07464768]
[1720708957135,39.4429,141.21,141.13,1.07464768]
[1720708957136,7.0822,141.2,141.14,7.0851]
[1720708957443,44.8042,141.21,141.11,17.7157]
[1720708957762,7.0838,141.17,141.11,24.8019]
[1720708958448,7.0841,141.16,141.11,17.7157]
[1720708958647,6.5841,141.16,141.11,17.7157]
[1720708958951,7.0836,141.17,141.11,24.8021]
[1720708959153,7.0842,141.16,141.11,17.7157]
[1720708959549,27.1,141.18,141.12,7.086]
[1720708959744,34.1834,141.18,141.12,7.086]
[1720708959955,34.1834,141.18,141.13,7.0855]
[1720708960158,34.1834,141.18,141.14,1.416851]
[1720708960360,34.1834,141.18,141.13,7.0855]
[1720708960675,27.1,141.18,141.13,7.0855]
[1720708960844,34.1832,141.18,141.12,7.0859]
[1720708961044,27.1,141.18,141.11,24.8022]
[1720708961251,45.0,141.17,141.08,17.7196]
[1720708961444,7.0855,141.14,141.08,24.8073]
[1720708961941,7.0846,141.15,141.08,17.7196]
[1720708962142,7.2543,141.16,141.1,7.0868]
[1720708962563,27.1,141.18,141.1,17.7173]
[1720708962875,7.0843,141.16,141.1,17.7173]
[1720708963178,7.0843,141.16,141.1,24.8043]
[1720708963348,7.0843,141.16,141.1,17.7173]
[1720708963549,7.0838,141.17,141.11,7.0866]
[1720708964263,7.0842,141.16,141.1,24.8043]
[1720708964857,7.0842,141.16,141.11,7.0866]
[1720708965063,27.1,141.18,141.13,7.0853]
[1720708965265,27.1,141.18,141.11,7.0866]
[1720708965467,7.0838,141.17,141.11,7.0866]
[1720708965769,7.0838,141.17,141.12,7.85896683]
[1720708965944,34.1833,141.18,141.12,7.85896683]
[1720708966272,27.1,141.18,141.13,7.0856]
[1720708966576,27.1,141.18,141.14,0.7729184]
[1720708967048,27.1,141.18,141.14,7.8577184]
[1720708967249,15.72270939,141.2,141.15,0.77286364]
[1720708967648,7.0828,141.19,141.14,0.77286364]
[1720708967850,7.0832,141.18,141.14,0.77286364]
[1720708968150,7.0838,141.17,141.12,16.0761]
[1720708968971,7.0843,141.16,141.1,24.8039]
[1720708969556,7.0838,141.17,141.11,7.0865]
[1720708969855,27.1,141.18,141.13,7.0855]
[1720708970050,27.1,141.18,141.14,17.7125]
[1720708970255,37.2189549,141.21,141.15,7.0843]
[1720708970476,34.1816,141.21,141.15,7.65838991]
[1720708970651,7.0821,141.2,141.15,7.65838991]
[1720708970859,7.0821,141.2,141.15,0.57408991]
[1720708971371,7.0832,141.18,141.12,7.086]
[1720708971773,7.0832,141.18,141.13,0.57400872]
[1720708971967,27.1,141.21,141.13,18.28730872]
[1720708972164,27.1,141.21,141.13,34.79400872]
[1720708972370,34.1818,141.21,141.15,7.0845]
[1720708972555,20.73337046,141.23,141.16,7.0838]
[1720708972556,30.13087046,141.23,141.16,7.0838]
[1720708972760,7.0815,141.22,141.16,7.0838]
[1720708972971,30.13087046,141.23,141.16,7.0838]
[1720708972972,7.0816,141.21,141.16,7.0838]
[1720708973678,7.0816,141.21,141.15,24.7956]
[1720708973981,7.0822,141.2,141.15,17.7114]
[1720708974552,7.0818,141.21,141.15,24.796]
[1720708974968,30.13087046,141.23,141.16,7.0837]
[1720708974969,7.0813,141.22,141.16,7.0837]
[1720708975367,7.0818,141.21,141.15,24.7958]
[1720708976069,37.21177046,141.23,141.17,7.0835]
[1720708976380,27.1,141.23,141.18,7.0829]
[1720708976569,27.1,141.23,141.18,8.49926195]
[1720708977087,7.0802,141.24,141.18,8.49926195]
[1720708977253,7.0797,141.25,141.19,7.0824]
[1720708977458,7.0797,141.25,141.2,1.41626959]
[1720708977877,34.1793,141.26,141.21,1.41616929]
[1720708978051,37.24606532,141.26,141.21,1.41616929]
[1720708978251,37.24606532,141.26,141.21,19.11996929]
[1720708978252,3.06676532,141.26,141.21,19.11996929]
[1720708978452,7.0781,141.29,141.23,7.0806]
[1720708978656,7.0781,141.29,141.24,1.41581668]
[1720708978657,7.0778,141.29,141.24,1.41581668]
[1720708979183,7.0781,141.28,141.23,17.7008]
[1720708979363,7.0781,141.28,141.24,1.41541732]
[1720708979692,7.0772,141.3,141.24,8.49541732]
[1720708980066,7.0777,141.29,141.24,1.41541732]
[1720708980371,7.0784,141.28,141.23,17.7008]
[1720708980570,7.0784,141.28,141.23,24.7814]
[1720708980776,7.0787,141.27,141.21,7.0814]
[1720708980981,7.0791,141.26,141.21,7.0814]
[1720708981292,7.0795,141.26,141.2,24.786]
[1720708981479,7.0795,141.26,141.21,7.0816]
[1720708982561,7.0805,141.24,141.19,15.7982]
[1720708983572,7.0805,141.24,141.17,17.7091]
[1720708983573,7.0807,141.23,141.17,24.7926]
[1720708984066,7.0802,141.24,141.18,7.083]
[1720708984473,6.5802,141.24,141.19,7.0826]
[1720708984694,34.1797,141.25,141.19,7.0826]
[1720708985057,34.1797,141.25,141.19,24.7891]
[1720708985291,27.1,141.25,141.19,17.7065]
[1720708985464,27.1,141.25,141.21,7.0811]
[1720708986168,27.1,141.25,141.22,7.0809]
[1720708986369,34.1782,141.28,141.22,7.0809]
[1720708986890,7.0787,141.27,141.22,7.0809]
[1720708987082,7.0787,141.27,141.21,24.785]
[1720708987780,7.0787,141.27,141.22,7.081]
[1720708987982,7.0787,141.27,141.22,8.49699024]
[1720708988372,7.0793,141.26,141.2,7.082]
[1720708988571,7.0799,141.25,141.19,7.0824]
[1720708988772,34.1799,141.25,141.19,7.0824]
[1720708989400,27.1,141.25,141.19,7.0824]
[1720708990078,34.18,141.25,141.19,7.0824]
[1720708990284,7.0806,141.23,141.18,24.7895]
[1720708990486,7.0806,141.23,141.18,17.7066]
[1720708990669,34.1811,141.22,141.16,22.9157]
[1720708991477,34.1811,141.22,141.17,7.0835]
[1720708991669,27.1,141.22,141.17,7.0835]
[1720708992169,7.0801,141.25,141.2,7.082]
[1720708992991,7.0804,141.24,141.19,17.7063]
[1720708993486,7.0807,141.23,141.17,7.0834]
[1720708993684,34.1807,141.23,141.17,7.0834]
[1720708993883,27.1,141.23,141.18,7.0831]
[1720708994082,7.0802,141.24,141.19,7.0826]
[1720708994588,7.0802,141.24,141.18,24.7905]
[1720708994792,7.0806,141.23,141.17,7.0836]